[Event "FRA-ch Teams Top 16-A 2022"]
[Site "Chartres"]
[Date "2022.06.15"]
[Round "7.14"]
[White "Da Silva, Quentin"]
[Black "Bournel, Antoine"]
[Result "1-0"]
[ECO "C95"]
[WhiteElo "2171"]
[BlackElo "2345"]
[Annotator "TA"]
[PlyCount "113"]
[EventDate "2022.06.09"]
[EventType "team-tourn"]
[EventCountry "FRA"]
[SourceTitle "playchess.com"]
[Source "ChessBase"]
[SourceQuality "1"]
[TimeControl "40/5400+30:1800+30"]

{[%evp 26,113,51,0,0,13,0,4,11,0,0,7,32,13,20,6,0,0,4,3,18,-14,-19,-40,-44,-38,-44,-69,-45,-61,-30,-27,-26,-169,-164,-142,-77,-168,-155,-175,-8,-8,-24,-13,-26,-65,-43,-197,-200,-204,-204,-306,-41,-166,-116,-190,-193,-219,-59,-59,-8,-27,-22,-880,0,0,0,0,207,153,541,525,518,518,4814,1030,901,893,29966,29968,29982,1248,29971,29972,29971,29969,29966,29969,29976,4902]} 1. e4 {[%emt 0:00:09]} e5 {[%emt 0:01:02]} 2. Nf3 {[%emt 0:00:27]} Nc6 {[%emt 0:00:32]} 3. Bb5 {[%emt 0:00:55]} a6 {[%emt 0:00:54]} 4. Ba4 {[%emt 0:00:30]} Nf6 {[%emt 0:00:41]} 5. O-O {[%emt 0:00:38]} Be7 {[%emt 0:01:05]} 6. Re1 {[%emt 0:02:53]} b5 {[%emt 0:01:01]} 7. Bb3 {[%emt 0:00:13]} d6 {[%emt 0:01:30]} 8. c3 {[%emt 0:03:16]} O-O {[%emt 0:00:51]} 9. h3 {[%emt 0:01:32]} Nb8 {[%emt 0:02:28]} 10. d4 {[%emt 0:03:55]} Nbd7 {[%emt 0:00:42]} 11. Nbd2 {[%emt 0:04:36]} Bb7 {[%emt 0:01:22]} 12. Bc2 {[%emt 0:02:11]} Re8 {[%emt 0:04:54]} 13. Nf1 {[%emt 0:04:04]} d5 {[%emt 0:09:46]} 14. exd5 {[%emt 0:08:30]} exd4 {[%emt 0:01:26] C95: Closed Ruy Lopez: Breyer Variation with 10 d4.} 15. Nxd4 {[%emt 0:06:19]} Nxd5 {[%emt 0:03:26]} 16. Nf5 {[%emt 0:07:50]} Bf6 {[%emt 0:19:16] The position is equal.} 17. Rxe8+ {[%emt 0:06:34]} Qxe8 {[%emt 0:00:01]} 18. N1g3 {[%emt 0:06:39]} Ne5 {[%emt 0:07:45]} 19. Nh5 {[%emt 0:05:27]} Rd8 {[%emt 0:06:46]} 20. Nxf6+ {[%emt 0:03:15]} Nxf6 {[%emt 0:02:34]} 21. Qf1 $1 {[%emt 0:01:59] [#]} Be4 $146 {[%emt 0:10:43]} ({Predecessor:} 21... Ne4 22. Bf4 Nd2 23. Bxd2 Rxd2 24. Nd4 Qd8 25. Qe1 Qd5 26. f3 Nxf3+ 27. Nxf3 Qc5+ {0-1 (38) Stojic,D (2155)-Rej,T (2283) Parramatta 2008}) 22. Bxe4 {[%emt 0:02:18]} Nxe4 {[%emt 0:00:01]} 23. Be3 {[%emt 0:03:53]} Qd7 {[%emt 0:01:05]} 24. Nd4 {[%emt 0:02:26][%cal Oa2a4]} c5 {[%emt 0:01:40]} 25. Nb3 {[%emt 0:01:37]} c4 {[%emt 0:01:57]} 26. Nd4 {[%emt 0:03:12]} Nd3 {[%emt 0:00:25]} 27. Qe2 {[%emt 0:01:54]} Re8 {[%emt 0:00:25][%cal Oe4f2] Hoping for ...Nexf2!} 28. Qc2 {[%emt 0:03:06]} f5 {[%emt 0:00:55][%cal Bf7f5,Bf5f4][%mdl 32] And now ...f4 would win.} 29. Ne2 {[%emt 0:02:13] Inhibits f4.} (29. Nf3 $1 $11) 29... Qc7 {[%emt 0:01:33] ...f4 is the strong threat.} 30. Bd4 {[%emt 0:03:08]} Qf7 {[%emt 0:02:18]} (30... f4 $142 {[%cal Of4f3] Strongly threatening ...f3!} 31. f3 Nd6) 31. a4 {[%emt 0:01:33] [#]} (31. f3 $17 {keeps fighting.} Ng5 32. Rf1) 31... f4 $1 $19 {[%emt 0:01:48] Threatens to win with ...f3.} 32. f3 {[%emt 0:02:33]} Ng5 $2 {[%emt 0:02:20] Pair of Knights!} (32... Ng3 $19 33. Nxg3 fxg3 34. axb5 axb5) 33. axb5 $11 {[%emt 0:02:03]} Qg6 {[%emt 0:01:18]} 34. Kh2 {[%emt 0:01:50]} (34. bxa6 $2 Nxf3+ 35. Kf1 Nh4 $19) 34... axb5 {[%emt 0:00:31]} 35. Ra7 {[%emt 0:01:16]} Ne6 {[%emt 0:01:04]} 36. Qd2 $2 {[%emt 0:01:06]} ({Better is} 36. Bb6 $15) 36... Nxd4 $40 {[%emt 0:01:48][%mdl 128] Black wants a kill.} 37. cxd4 {[%emt 0:00:17]} h5 {[%emt 0:00:59]} 38. Ra5 {[%emt 0:02:28] [#]} (38. Nxf4 $2 Qh6 39. Ra3 (39. g3 $2 h4 $19) 39... Qxf4+ $19) (38. Kg1 $142) 38... Qf5 $2 {[%emt 0:03:38]} (38... Qe6 $1 $19 {[%cal Re6e2]} 39. Ng1 (39. Nxf4 $2 Qd6 $19) 39... Qe3 40. Qxe3 fxe3) 39. Ra6 {[%emt 0:00:31]} (39. Nc3 $1 $15) 39... Re3 {[%emt 0:01:34]} (39... b4 $19 40. Rc6 Qd5) 40. Ra8+ {[%emt 0:00:32]} (40. Nc3 $17) 40... Kh7 {[%emt 0:00:20]} 41. Nc3 {[%emt 0:08:11]} Qg6 {[%emt 0:07:59]} (41... Qf6 $19 {White must now prevent ...Re1.} 42. Ne4 Qxd4) 42. Ne4 $15 {[%emt 0:10:10]} h4 {[%emt 0:00:12]} ({Black should play} 42... b4 $15) 43. Ra1 $1 $11 {[%emt 0:03:40]} b4 {[%emt 0:02:45]} 44. Ra5 $2 {[%emt 0:06:05][%mdl 8192]} (44. Rf1 $11) 44... Kh6 $2 {[%emt 0:08:40]} (44... Rxe4 $19 45. fxe4 f3) 45. Rg5 {[%emt 0:01:37] Prevents Qg3+.} Qb6 {[%emt 0:01:12][%cal Oe3e4] aiming for ...Rxe4!} 46. Rg4 {[%emt 0:01:29]} Qd8 {[%emt 0:07:26]} (46... Qxd4 $11 47. Rxh4+ Kg6 48. Rg4+ Kh7 49. Rxf4 Qe5 50. Qxe3 Qxf4+ 51. Qxf4 Nxf4) 47. Qc2 $18 {[%emt 0:02:09]} Qxd4 {[%emt 0:04:15]} (47... Rxe4 $16 48. fxe4 Qxd4) 48. Qa4 {[%emt 0:00:45]} Rxe4 {[%emt 0:01:48]} 49. Qc6+ {[%emt 0:00:30]} ({Worse is} 49. fxe4 Qf6 $11) 49... Kh7 {[%emt 0:02:37]} (49... Qf6 $142 50. Rxh4+ (50. Qxe4 Nxb2 51. Rxf4 Qd6 $11) 50... Kg5 51. Rg4+ Kh6 52. Qxe4 b3 53. Qxc4 Ne5 54. Qxf4+ Qxf4+ 55. Rxf4 Nd3) 50. Qg6+ {[%emt 0:00:26]} (50. Rxh4+ $142 Kg8 51. fxe4) 50... Kg8 {[%emt 0:00:20]} 51. fxe4 {[%emt 0:00:20][%mdl 4096] Endgame White wants to mate with Qe8+. KQR-KQN} Qe5 {[%emt 0:00:53] Prevents Qe8+.} 52. Rg5 {[%emt 0:00:35]} Qe7 {[%emt 0:00:21]} 53. Rh5 {[%emt 0:00:35]} (53. Rb5 $142 Ne5 54. Rb8+ Qf8 55. Rxf8+ Kxf8 56. Qd6+ Kg8 57. Qxe5 c3 58. bxc3) 53... Ne5 {[%emt 0:02:25]} 54. Qh7+ {[%emt 0:00:11] White mates.} Kf7 {[%emt 0:00:23]} 55. Qf5+ {[%emt 0:00:28]} Kg8 {[%emt 0:01:11]} 56. Qxe5 {[%emt 0:00:08]} Qd7 {[%emt 0:00:34]} 57. Qd5+ {[%emt 0:00:33] Weighted Error Value: White=0.39/Black=0.90} (57. Qb8+ $142 Kf7 58. Rf5+ Kg6 59. Qb6+ Kh7 60. Rh5+ Kg8 61. Qxb4 Qe6 62. Qb8+ Kf7 63. Rf5+ Kg6 64. Qh8 Qxf5 65. exf5+ Kg5 66. Qd8+ Kxf5 67. Qc8+ Ke4 68. Qxc4+ Ke3 69. Qc1+ Ke4 70. b4) 1-0

[Event "FRA-ch Teams Top 16-A 2022"]
[Site "Chartres"]
[Date "2022.06.15"]
[Round "7.15"]
[White "Guilleux, Fabien"]
[Black "Caille, Hugo"]
[Result "1-0"]
[ECO "D36"]
[WhiteElo "2382"]
[BlackElo "2177"]
[Annotator "TA"]
[PlyCount "107"]
[EventDate "2022.06.09"]
[EventType "team-tourn"]
[EventCountry "FRA"]
[SourceTitle "playchess.com"]
[Source "ChessBase"]
[SourceQuality "1"]
[TimeControl "40/5400+30:1800+30"]

{[%evp 21,107,5,12,6,18,0,2,0,18,5,5,12,8,14,13,0,46,35,35,52,52,41,47,43,69,80,183,91,134,96,258,0,223,212,229,167,177,145,142,161,153,142,197,206,214,214,237,231,265,254,378,377,621,616,579,577,533,529,501,496,490,319,746,746,641,494,486,470,597,509,5561,5486,29976,29977,29979,29980,29980,29981,29983,29984,29983,29984,29989,29990,29990,29990,29991,29989]} 1. c4 {[%emt 0:00:04]} e6 {[%emt 0:00:45]} 2. Nc3 {[%emt 0:00:26]} d5 {[%emt 0:00:21]} 3. d4 {[%emt 0:00:16]} Nf6 {[%emt 0:01:36]} 4. cxd5 {[%emt 0:00:46]} exd5 {[%emt 0:00:28]} 5. Bg5 {[%emt 0:00:19]} Be7 {[%emt 0:00:26]} 6. e3 {[%emt 0:00:17]} c6 {[%emt 0:01:23]} 7. Bd3 {[%emt 0:00:32]} Nbd7 {[%emt 0:02:46][%cal Bb8d7,Bd7f8,Bf8e6][%mdl 32]} 8. Nge2 {[%emt 0:05:17]} Nf8 {[%emt 0:01:04]} 9. Qc2 {[%emt 0:03:49]} Ne6 {[%emt 0:00:28]} 10. Bh4 {[%emt 0:00:08]} g6 {[%emt 0:00:36]} 11. O-O {[%emt 0:01:45]} O-O {[%emt 0:03:36]} 12. Rad1 {[%emt 0:04:57] D36: Queen's Gambit Declined: Exchange Variation: Main line (5 Bg5 c6 6 Qc2).} b5 {[%emt 0:07:59][%cal Bb7b5,Bb5b4][%mdl 32] [#]} 13. a4 $146 {[%emt 0:34:12]} ({Predecessor:} 13. f3 Bb7 14. Bf2 Rc8 15. e4 dxe4 16. Nxe4 Nd5 17. a3 a6 18. Nc5 Nxc5 19. dxc5 Qd7 {½-½ (68) Ramsdal,J (2267)-Arabidze,M (2437) Chess.com INT 2021}) 13... b4 {[%emt 0:02:42]} 14. Na2 {[%emt 0:00:47][%cal Bc3a2,Ba2c1,Bc1b3,Bb3d4,Bd4f3,Bf3h4][%mdl 32] The position is equal.} Qb6 {[%emt 0:01:24]} 15. Nac1 {[%emt 0:06:14]} c5 {[%emt 0:04:56]} 16. a5 {[%emt 0:00:56]} Qxa5 {[%emt 0:08:25] [#] White must now prevent ...c4.} 17. Nb3 {[%emt 0:00:07]} Qc7 {[%emt 0:00:23] Threatens to win with ...c4.} 18. dxc5 {[%emt 0:03:15]} a5 {[%emt 0:02:29]} (18... Ng4 $2 19. Bg3 Ne5 20. Bb5 $16) (18... Bd7 $11 {should be considered.}) 19. c6 $1 $14 {[%emt 0:01:05]} Ng4 {[%emt 0:15:37][%csl Gg4,LRh2,LRh4][%cal Rc7h2]} 20. Bg3 {[%emt 0:00:08]} Bd6 {[%emt 0:00:06]} 21. Nbd4 {[%emt 0:01:36] Strongly threatening Nb5.} Bxg3 {[%emt 0:01:20]} 22. hxg3 {[%emt 0:07:39]} Qe5 {[%emt 0:03:18]} 23. Nf3 {[%emt 0:01:35]} Qh5 {[%emt 0:01:23]} (23... Qd6 $16) 24. Rfe1 {[%emt 0:02:02]} (24. Nf4 $18 {and White stays clearly on top.} Nxf4 25. exf4 (25. gxf4 a4 $16)) 24... Ng5 {[%emt 0:05:34] [#] ( -> ...Nxf3+)} 25. Nh4 {[%emt 0:01:53] Hoping for Nf4.} Be6 $2 {[%emt 0:03:22]} (25... Qh6 $16) 26. Qc5 $2 {[%emt 0:12:21]} (26. Nf4 $18 Qh6 27. c7) 26... Nf6 {[%emt 0:04:17]} (26... Ne4 $11 27. Bxe4 dxe4 28. Qxh5 gxh5) 27. Qd4 $18 {[%emt 0:01:20]} Nge4 {[%emt 0:04:05]} 28. Bxe4 {[%emt 0:02:11]} Nxe4 {[%emt 0:00:06]} 29. Nf4 {[%emt 0:00:06][%csl LRd5,LRh5]} Qg5 {[%emt 0:02:38]} 30. Nf3 $40 {[%emt 0:00:06][%mdl 128] Black is in trouble. Dancing on a razor blade.} ({Much less strong is} 30. Nxd5 $6 Qxd5 31. Qxd5 Bxd5 32. Rxd5 Rfc8 $11) 30... Qf6 {[%emt 0:01:09]} 31. Nxd5 {[%emt 0:00:25]} Bxd5 {[%emt 0:00:15]} (31... Qxd4 $16 {keeps fighting.} 32. Ne7+ (32. Rxd4 Bxd5 33. Rxd5 a4 $16) 32... Kg7 33. exd4 (33. Rxd4 Nc5 $14) 33... Nd6) 32. Qxd5 {[%emt 0:00:06]} Rfe8 {[%emt 0:00:19]} 33. Rd4 {[%emt 0:02:58]} Qe7 {[%emt 0:00:20]} 34. c7 {[%emt 0:01:48]} a4 {[%emt 0:03:12]} 35. Rc1 {[%emt 0:01:48]} Nxg3 {[%emt 0:02:44]} (35... Nf6 $142 36. Qb7 a3 37. bxa3 (37. Qxb4 Qxb4 38. Rxb4 a2 $16) 37... bxa3) 36. Qxa8 {[%emt 0:01:07]} Rxa8 {[%emt 0:00:04]} (36... Ne2+ 37. Kf1 Rxa8 38. c8=Q+ (38. Kxe2 Rc8 $17) 38... Rxc8 39. Rxc8+ Kg7 40. Kxe2 Qb7) 37. c8=Q+ {[%emt 0:00:10]} Rxc8 {[%emt 0:00:03]} 38. Rxc8+ {[%emt 0:00:08]} Kg7 {[%emt 0:00:03] aiming for ...Ne2+.} 39. fxg3 {[%emt 0:00:58]} Qxe3+ {[%emt 0:00:04]} 40. Kh2 {[%emt 0:00:09]} a3 {[%emt 0:02:27]} 41. Rxb4 {[%emt 0:33:48]} axb2 {[%emt 0:30:43]} (41... a2 42. Ra8 Qc5) 42. Rxb2 {[%emt 0:00:51]} Qh6+ {[%emt 0:03:28]} 43. Kg1 {[%emt 0:00:32]} Qe3+ {[%emt 0:00:12]} 44. Rf2 {[%emt 0:00:12]} f5 {[%emt 0:01:07]} 45. Rcc2 {[%emt 0:00:00]} Kh6 {[%emt 0:00:00]} (45... Kf6 $142 46. Rce2 Qc1+ 47. Rf1 Qc7) 46. Kh2 {[%emt 0:00:00]} f4 {[%emt 0:00:00]} 47. g4 {[%emt 0:00:00][%cal Bg3g4,Bg4g5,Bg5h6][%mdl 32] White mates.} Qe6 {[%emt 0:00:00]} 48. g5+ {[%emt 0:00:00]} Kh5 {[%emt 0:00:00]} 49. Rc7 {[%emt 0:00:00]} Qg8 {[%emt 0:00:00]} 50. Re2 {[%emt 0:00:00]} Kg4 {[%emt 0:01:49]} 51. Ree7 {[%emt 0:00:00]} h5 {[%emt 0:03:17]} 52. gxh6 {[%emt 0:00:00]} Qf8 {[%emt 0:00:55]} 53. Rg7 {[%emt 0:00:00]} Qf5 {[%emt 0:00:06]} 54. Rxg6+ {[%emt 0:00:00] Weighted Error Value: White=0.27 (precise) /Black=0.68} 1-0

[Event "FRA-ch Teams Top 16-A 2022"]
[Site "Chartres"]
[Date "2022.06.15"]
[Round "7.16"]
[White "Afraoui, Solenn"]
[Black "Alexieva, Silvia"]
[Result "0-1"]
[ECO "B47"]
[WhiteElo "1945"]
[BlackElo "2219"]
[Annotator "NA RC"]
[PlyCount "116"]
[EventDate "2022.06.09"]
[EventType "team-tourn"]
[EventCountry "FRA"]
[SourceTitle "playchess.com"]
[Source "ChessBase"]
[SourceQuality "1"]
[TimeControl "40/5400+30:1800+30"]

1. e4 c5 {[%emt 1:31:00]} 2. Nf3 e6 {[%emt 0:00:00]} 3. d4 {[%emt 0:00:44]} cxd4 {[%emt 0:00:00]} 4. Nxd4 {[%emt 0:00:04]} Nc6 {[%emt 0:00:00]} 5. Nc3 {[%emt 0:02:39]} Qc7 {[%emt 0:00:00]} 6. g3 {[%emt 0:01:24]} a6 {[%emt 0:00:00]} 7. Bg2 {[%emt 0:02:36]} d6 {[%emt 0:00:00]} 8. O-O {[%emt 0:02:27]} Bd7 {[%emt 0:00:00]} 9. Re1 {[%emt 0:04:45]} Be7 {[%emt 0:00:00]} 10. Nxc6 {[%emt 0:11:52]} bxc6 {[%emt 0:00:00]} 11. Na4 {[%emt 0:01:06]} Rb8 {[%emt 0:00:00]} 12. c4 {[%emt 0:01:43]} c5 {[%emt 0:00:00]} 13. Nc3 {[%emt 0:01:12]} Bf6 {[%emt 0:00:00]} 14. Qd3 {[%emt 0:18:41]} Ne7 {[%emt 0:00:00]} 15. Bf4 {[%emt 0:09:19]} Bd4 {[%emt 0:00:00]} 16. Be3 {[%emt 0:06:19]} e5 {[%emt 0:00:00]} 17. b3 {[%emt 0:05:02]} O-O {[%emt 0:00:00]} 18. Bxd4 {[%emt 0:01:20]} cxd4 {[%emt 0:00:00]} 19. Nd5 {[%emt 0:00:35]} Nxd5 {[%emt 0:00:00]} 20. exd5 {[%emt 0:28:42]} a5 {[%emt 0:09:30]} 21. Rac1 {[%emt 0:00:30]} Qc5 {[%emt 0:00:00]} 22. f4 Rfe8 {[%emt 0:00:00]} 23. Kh1 g6 {[%emt 0:01:30]} 24. fxe5 {[%emt 0:00:00]} dxe5 {[%emt 0:00:00]} 25. Red1 {[%emt 0:00:00]} Rb6 {[%emt 0:00:00]} 26. h3 {[%emt 0:00:00]} h5 {[%emt 0:00:00]} 27. Kh2 {[%emt 0:00:00]} Kg7 {[%emt 0:00:00]} 28. Rb1 {[%emt 0:01:50]} f5 {[%emt 0:00:00]} 29. Rb2 {[%emt 0:00:30]} Rf6 {[%emt 0:00:00]} 30. Rc2 {[%emt 0:00:30]} f4 {[%emt 0:00:00]} 31. Be4 fxg3+ {[%emt 0:00:00]} 32. Qxg3 {[%emt 0:01:44]} Bf5 {[%emt 0:00:00]} 33. Bxf5 {[%emt 0:00:21]} Rxf5 {[%emt 0:00:00]} 34. Rg2 {[%emt 0:00:44]} Rf6 {[%emt 0:00:00]} 35. Qg5 {[%emt 0:00:42]} e4 {[%emt 0:00:00]} 36. Qxh5 {[%emt 0:00:26]} Qd6+ {[%emt 0:00:00]} 37. Kh1 {[%emt 0:00:34]} Rh8 {[%emt 0:00:00]} 38. Qg4 {[%emt 0:00:09]} Rf3 {[%emt 0:00:00]} 39. Rh2 {[%emt 0:00:48]} Qf6 {[%emt 0:00:00]} 40. Rg1 {[%emt 0:00:38]} Rh4 {[%emt 0:00:00]} 41. Qd7+ {[%emt 0:11:16]} Kh6 {[%emt 0:00:00]} 42. Qe6 {[%emt 0:07:45]} e3 {[%emt 0:00:00]} 43. Qxf6 {[%emt 0:03:02]} Rxf6 {[%emt 0:00:00]} 44. Re1 {[%emt 0:02:46]} Re4 {[%emt 0:00:00]} 45. Rhe2 {[%emt 0:01:18]} d3 46. Rxe3 {[%emt 0:04:51]} Rxe3 {[%emt 0:00:00]} 47. Rxe3 {[%emt 0:00:03]} d2 {[%emt 0:00:00]} 48. Rd3 {[%emt 0:00:45]} Rf1+ {[%emt 0:00:00]} 49. Kg2 {[%emt 0:00:18]} d1=Q {[%emt 0:00:06]} 50. Rxd1 {[%emt 0:00:02]} Rxd1 {[%emt 0:00:06]} 51. Kf3 {[%emt 0:00:11]} Kg5 {[%emt 0:05:06]} 52. Ke4 {[%emt 0:00:12]} Kf6 {[%emt 0:00:06]} 53. c5 {[%emt 0:01:39]} Ra1 {[%emt 0:02:42]} 54. Kd4 {[%emt 0:02:06]} Rxa2 {[%emt 0:01:29]} 55. Kc4 {[%emt 0:00:35]} Ke7 {[%emt 0:02:37]} 56. Kb5 {[%emt 0:00:33]} Kd7 {[%emt 0:00:14]} 57. Kb6 {[%emt 0:00:37]} Rb2 {[%emt 0:00:36]} 58. c6+ {[%emt 0:00:41]} Kd6 {[%emt 0:00:06]} 0-1

[Event "FRA-ch Teams Top 16-A 2022"]
[Site "Chartres"]
[Date "2022.06.15"]
[Round "7.18"]
[White "Mamedov, Rauf"]
[Black "Ganguly, Surya Shekhar"]
[Result "1/2-1/2"]
[ECO "C67"]
[WhiteElo "2656"]
[BlackElo "2616"]
[Annotator "TA"]
[PlyCount "50"]
[EventDate "2022.06.09"]
[EventType "team-tourn"]
[EventCountry "FRA"]
[SourceTitle "playchess.com"]
[Source "ChessBase"]
[SourceQuality "1"]
[TimeControl "40/5400+30:1800+30"]

{[%evp 9,50,20,19,0,17,-5,15,15,18,19,11,18,16,18,16,19,21,22,22,22,19,20,25,25,14,20,14,15,31,0,-7,-14,0,-7,-10,-15,-11,-30,0,-11,6,0,21]} 1. e4 {[%emt 0:00:07]} e5 {[%emt 0:00:11]} 2. Nf3 {[%emt 1:31:23]} Nc6 {[%emt 0:00:05]} 3. Bb5 {[%emt 0:00:00]} Nf6 {[%emt 0:00:12]} 4. O-O {[%emt 0:00:00][%cal Bh1f1,Bf1e1,Be1e4][%mdl 32]} Nxe4 {[%emt 0:00:06]} 5. Re1 {[%emt 0:00:00]} Nd6 {[%emt 0:00:12]} 6. Bf1 {[%emt 0:00:00] C67: Ruy Lopez: Berlin Defence: 4 0-0 Nxe4.} Be7 {[%emt 0:00:28] [#] And now ...e4 would win.} 7. Nc3 $1 {[%emt 0:00:00][%mdl 4] Prevents e4. is recently more successful than 7.Nxe5.} e4 {[%emt 0:00:39]} 8. Nxe4 {[%emt 0:00:00]} Nxe4 {[%emt 0:00:04]} 9. Rxe4 {[%emt 0:00:00]} d5 {[%emt 0:00:08]} 10. Re1 {[%emt 0:00:00]} Bg4 {[%emt 0:00:06][%cal Bc8g4,Bg4h5,Bh5g6][%mdl 32]} 11. h3 {[%emt 0:00:00]} Bh5 {[%emt 0:00:23]} 12. c3 {[%emt 0:00:00]} O-O {[%emt 0:00:27]} 13. d4 {[%emt 0:00:00]} Bd6 {[%emt 0:00:05] [#]} 14. g4 $146 {[%emt 0:00:00]} ({Predecessor:} 14. Bd3 Bg6 15. Bxg6 hxg6 16. Bg5 Qd7 17. Qd2 Rfe8 18. Bf4 f6 19. Bxd6 Qxd6 20. Qd3 {0-1 (37) Golubev,M (2461)-Belyakov,B (2465) Chess.com INT 2021}) 14... Bg6 {[%emt 0:00:05]} 15. Ne5 {[%emt 0:06:30]} Nxe5 {[%emt 1:34:49]} 16. dxe5 {[%emt 0:00:00]} Bc5 {[%emt 0:00:00]} 17. Be3 {[%emt 0:00:00]} Bxe3 {[%emt 0:00:00]} 18. Rxe3 {[%emt 0:00:00]} c6 {[%emt 0:00:00]} 19. Bg2 {[%emt 0:00:00]} f5 {[%emt 0:00:00]} 20. e6 {[%emt 0:00:00] [#] Threatens to win with e7.} Qe7 {[%emt 0:00:00]} (20... Qd6 {looks sharper.} 21. e7 Rf6 22. gxf5 Rxf5 23. Qb3 Qc7) 21. Qe2 {[%emt 0:00:00]} fxg4 {[%emt 0:00:00]} 22. hxg4 {[%emt 0:00:00]} Rf4 {[%emt 0:00:00]} 23. Re1 {[%emt 0:00:00]} Raf8 {[%emt 0:00:00]} 24. Rf3 {[%emt 0:00:00]} h6 {[%emt 0:00:00]} 25. Qe3 {[%emt 0:00:00]} Rxf3 {[%emt 0:00:00] An even fight not without its subleties.  Weighted Error Value: White=0.05 (flawless) /Black=0.05 (flawless)} ({Much less strong is} 25... Rxg4 26. Rxf8+ Qxf8 27. e7 $16) 1/2-1/2